Workbook

Sheet osnovne škole
A1: PLAN RASHODA I IZDATAKA
A2: Šifra | B2: Naziv | C2: PRIJEDLOG PLANA ZA 2014. | D2: Opći prihodi i primici | E2: Vlastiti prihodi | F2: Prihodi za posebne namjene | G2: Pomoći | H2: Donacije | I2: Prihodi od nefinancijske imovine i nadoknade šteta s osnova osiguranja | J2: Namjenski primici od zaduživanja | K2: PROJEKCIJA PLANA ZA 2015. | L2: PROJEKCIJA PLANA ZA 2016.
B4: NAZIV KORISNIKA
A6: Program | B6: Osnovno i srednjoškolsko obrazovanje
A7: Aktivnost | B7: Osnovnoškolsko obrazovanje-standard
A8: 3 | B8: RASHODI POSLOVANJA | C8: =C9+C11+C16 -> 0 | D8: =D9+D11+D16 -> 0 | E8: 0 | F8: 0 | G8: 0 | H8: 0 | I8: 0 | J8: 0 | K8: 0 | L8: 0
A9: 31 | B9: Rashodi za zaposlene | C9: =SUM(C10) -> 0 | D9: =SUM(D10) -> 0 | E9: 0 | F9: 0 | G9: 0 | H9: 0 | I9: 0 | J9: 0
A10: 312 | B10: Ostali rashodi za zaposlene
A11: 32 | B11: Materijalni rashodi | C11: =SUM(C12:C15) -> 0 | D11: =SUM(D12:D15) -> 0 | E11: 0 | F11: 0 | G11: 0 | H11: 0 | I11: 0 | J11: 0
A12: 321 | B12: Naknade troškova zaposlenima
A13: 322 | B13: Rashodi za materijal i energiju
A14: 323 | B14: Rashodi za usluge
A15: 329 | B15: Ostali nespomenuti rashodi poslovanja
A16: 34 | B16: Financijski rashodi | C16: =SUM(C17) -> 0 | D16: =SUM(D17) -> 0 | E16: 0 | F16: 0 | G16: 0 | H16: 0 | I16: 0 | J16: 0
A17: 343 | B17: Ostali financijski rashodi
B18: UKUPNO: | C18: =C8 -> 0 | D18: =D8 -> 0 | E18: 0 | F18: 0 | G18: 0 | H18: 0 | I18: 0 | J18: 0 | K18: 0 | L18: 0
A21: Aktivnost | B21: Osnovnoškolsko obrazovanje - operativni plan
A22: 3 | B22: RASHODI POSLOVANJA | C22: =C23 -> 0 | D22: =D23 -> 0 | E22: 0 | F22: 0 | G22: 0 | H22: 0 | I22: 0 | J22: 0 | K22: 0 | L22: 0
A23: 32 | B23: Materijalni rashodi | C23: =SUM(C24:C25) -> 0 | D23: =SUM(D24:D25) -> 0 | E23: 0 | F23: 0 | G23: 0 | H23: 0 | I23: 0 | J23: 0
A24: 322 | B24: Rashodi za materijal i energiju
A25: 323 | B25: Rashodi za usluge
B26: UKUPNO: | C26: =C22 -> 0 | D26: =D22 -> 0 | E26: 0 | F26: 0 | G26: 0 | H26: 0 | I26: 0 | J26: 0 | K26: 0 | L26: 0
A31: Aktivnost | B31: Podizanje kvalitete i standarda kroz aktivnosti škola
A32: 3 | B32: RASHODI POSLOVANJA | C32: =C33+C37 -> 0 | D32: =D33+D37 -> 0 | E32: 0 | F32: 0 | G32: 0 | H32: 0 | I32: 0 | J32: 0 | K32: 0 | L32: 0
A33: 31 | B33: Rashodi za zaposlene | C33: =SUM(C34:C36) -> 0 | D33: =SUM(D34:D36) -> 0 | E33: 0 | F33: 0 | G33: 0 | H33: 0 | I33: 0 | J33: 0
A34: 311 | B34: Plaće (Bruto)
A35: 312 | B35: Ostali rashodi za zaposlene
A36: 313 | B36: Doprinosi na plaće
A37: 32 | B37: Materijalni rashodi | C37: =SUM(C38:C41) -> 0 | D37: =SUM(D38:D41) -> 0 | E37: 0 | F37: 0 | G37: 0 | H37: 0 | I37: 0 | J37: 0
A38: 321 | B38: Naknade troškova zaposlenima
A39: 322 | B39: Rashodi za materijal i energiju
A40: 323 | B40: Rashodi za usluge
A41: 329 | B41: Ostali nespomenuti rashodi poslovanja
A42: 4 | B42: Rashodi za nabavu nefinancijske imovine | C42: =C43 -> 0 | D42: =D43 -> 0 | E42: 0 | F42: 0 | G42: 0 | H42: 0 | I42: 0 | J42: 0 | K42: 0 | L42: 0
A43: 42 | B43: Rashodi za nabavu proizvedene dugotrajne imovine | C43: =SUM(C44:C45) -> 0 | D43: =SUM(D44:D45) -> 0 | E43: 0 | F43: 0 | G43: 0 | H43: 0 | I43: 0 | J43: 0
A44: 422 | B44: Postrojenja i oprema
A45: 424 | B45: Knjige, umjetnička djela i ostale izložbene vrijednosti
B46: UKUPNO: | C46: =C32+C42 -> 0 | D46: =D32+D42 -> 0 | E46: 0 | F46: 0 | G46: 0 | H46: 0 | I46: 0 | J46: 0 | K46: 0 | L46: 0
A49: T | B49: Stručno osposobljavanje za rad bez zasnivanja radnog odnosa
A50: 3 | B50: RASHODI POSLOVANJA | C50: =C51 -> 0 | D50: =D51 -> 0 | E50: 0 | F50: 0 | G50: 0 | H50: 0 | I50: 0 | J50: 0 | K50: 0 | L50: 0
A51: 32 | B51: Materijalni rashodi | C51: =SUM(C52) -> 0 | D51: =SUM(D52) -> 0 | E51: 0 | F51: 0 | G51: 0 | H51: 0 | I51: 0 | J51: 0
A52: 324 | B52: Naknade trošk.osobama izvan radn.odn.
B53: UKUPNO: | C53: =C50 -> 0 | D53: =D50 -> 0 | E53: 0 | F53: 0 | G53: 0 | H53: 0 | I53: 0 | J53: 0 | K53: 0 | L53: 0
B55: SVEUKUPNO: | C55: =C18+C26+C46+C52 -> 0 | D55: =D18+D26+D46+D52 -> 0 | E55: 0 | F55: 0 | G55: 0 | H55: 0 | I55: 0 | J55: 0 | K55: 0 | L55: 0
A67: A | B67: Naziv aktivnosti
A68: 3 | B68: RASHODI POSLOVANJA
A69: 31 | B69: Rashodi za zaposlene
A70: 311 | B70: Plaće (Bruto)
A71: 312 | B71: Ostali rashodi za zaposlene
A72: 313 | B72: Doprinosi na plaće
A73: 32 | B73: Materijalni rashodi
A74: 321 | B74: Naknade troškova zaposlenima
A75: 322 | B75: Rashodi za materijal i energiju
A76: 323 | B76: Rashodi za usluge
A77: 329 | B77: Ostali nespomenuti rashodi poslovanja
A78: 34 | B78: Financijski rashodi
A79: 343 | B79: Ostali financijski rashodi
A80: 4 | B80: Rashodi za nabavu nefinancijske imovine
A81: 42 | B81: Rashodi za nabavu proizvedene dugotrajne imovine
A82: 422 | B82: Postrojenja i oprema
A83: 424 | B83: Knjige, umjetnička djela i ostale izložbene vrijednosti

Sheet srednje škole
A1: PLAN RASHODA I IZDATAKA
A2: Šifra | B2: Naziv | C2: PRIJEDLOG PLANA ZA 2014. | D2: Opći prihodi i primici | E2: Vlastiti prihodi | F2: Prihodi za posebne namjene | G2: Pomoći | H2: Donacije | I2: Prihodi od nefinancijske imovine i nadoknade šteta s osnova osiguranja | J2: Namjenski primici od zaduživanja | K2: PROJEKCIJA PLANA ZA 2015. | L2: PROJEKCIJA PLANA ZA 2016.
B4: MEDICINSKA I KEMIJSKA ŠKOLA
B5: ŠIBENIK
A6: Program | B6: Osnovno i srednjoškolsko obrazovanje
A7: Aktivnost | B7: Srednjoškolsko obrazovanje-standard
B8: PLAN UKUPNO: | C8: 5354755 | D8: =D24+D29+D92 -> 5171800 | E8: =E24 -> 21000 | F8: 158385 | G8: 3570 | K8: 5354755 | L8: 5354755
A9: 3 | B9: RASHODI POSLOVANJA | C9: =C10+C12+C17 -> 614385 | D9: =D10+D12+D17 -> 435000 | E9: =E10+E12+E17 -> 21000 | F9: =F10+F12+F17 -> 158385 | H9: =H10+H12+H17 -> 0 | I9: =I10+I12+I17 -> 0 | J9: =J10+J12+J17 -> 0 | K9: =K10+K12+K17 -> 614385 | L9: 614385
A10: 31 | B10: Rashodi za zaposlene
A11: 312 | B11: Ostali rashodi za zaposlene
A12: 32 | B12: Materijalni rashodi | C12: =D12+E12+F12 -> 612885 | D12: =SUM(D13:D16) -> 433500 | E12: 21000 | F12: 158385 | G12: 0 | H12: 0 | I12: 0 | J12: 0 | K12: 612885 | L12: 612885
A13: 321 | B13: Naknade troškova zaposlenima | C13: 193000 | D13: 190000 | E13: 3000
A14: 322 | B14: Rashodi za materijal i energiju | C14: 91300 | D14: 86300 | E14: 5000
A15: 323 | B15: Rashodi za usluge | C15: 157832 | D15: 149832 | E15: 8000
A16: 329 | B16: Ostali nespomenuti rashodi poslovanja | C16: 170753 | D16: 7368 | E16: 5000 | F16: 158385
A17: 34 | B17: Financijski rashodi | C17: 1500 | D17: =SUM(D18) -> 1500 | E17: 0 | F17: 0 | G17: 0 | H17: 0 | I17: 0 | J17: 0 | K17: 1500 | L17: 1500
A18: 343 | B18: Ostali financijski rashodi | C18: 1500 | D18: 1500
A19: 4 | B19: Rashodi za nabavu nefinancijske imovine | C19: 3570 | G19: 3570
A20: 42 | B20: Rashodi za nabavu proizvedene dugotrajne imovine | C20: 3570 | G20: 3570 | K20: 3570 | L20: 3570
A21: 422 | B21: Postrojenja i oprema
A22: 424 | B22: Knjige, umjetnička djela i ostale izložbene vrijednosti | C22: =G22 -> 3570 | G22: 3570
B24: UKUPNO: | C24: =C9+C20 -> 617955 | D24: =D9 -> 435000 | E24: 21000 | F24: 158385 | G24: 3570 | H24: 0 | I24: 0 | J24: 0 | K24: =K9+K20 -> 617955 | L24: 617955
A27: Aktivnost | B27: Srednjoškolsko obrazovanje - operativni plan
A28: 3 | B28: RASHODI POSLOVANJA | C28: 36800 | D28: =D29 -> 36800 | E28: 0 | F28: 0 | G28: 0 | H28: 0 | I28: 0 | J28: 0
A29: 32 | B29: Materijalni rashodi | C29: 36800 | D29: =SUM(D30:D31) -> 36800 | E29: 0 | F29: 0 | G29: 0 | H29: 0 | I29: 0 | J29: 0 | K29: 36800 | L29: 36800
A30: 322 | B30: Rashodi za materijal i energiju
A31: 323 | B31: Rashodi za usluge | C31: 36800 | D31: 36800
A32: 4 | B32: Rashodi za nabavu nefinancijske imovine
A33: 42 | B33: Rashodi za nabavu proizvedene dugotrajne imovine
A34: 422 | B34: Postrojenja i oprema
A35: 424 | B35: Knjige, umjetnička djela i ostale izložbene vrijednosti
B36: UKUPNO: | C36: =C28+C34 -> 36800 | D36: =D28+D34 -> 36800 | E36: =E28 -> 0 | F36: 0 | G36: 0 | H36: 0 | I36: 0 | J36: 0 | K36: =K29+K33 -> 36800 | L36: 36800
A43: Aktivnost | B43: Podizanje kvalitete i standarda kroz aktivnosti škola
A44: 3 | B44: RASHODI POSLOVANJA | C44: =C45+C49 -> 0 | D44: =D45+D49 -> 0 | E44: 0 | F44: 0 | G44: 0 | H44: 0 | I44: 0 | J44: 0 | K44: 0 | L44: 0
A45: 31 | B45: Rashodi za zaposlene | C45: =SUM(C46:C48) -> 0 | D45: =SUM(D46:D48) -> 0 | E45: 0 | F45: 0 | G45: 0 | H45: 0 | I45: 0 | J45: 0
A46: 311 | B46: Plaće (Bruto)
A47: 312 | B47: Ostali rashodi za zaposlene
A48: 313 | B48: Doprinosi na plaće
A49: 32 | B49: Materijalni rashodi | C49: =SUM(C50:C53) -> 0 | D49: =SUM(D50:D53) -> 0 | E49: 0 | F49: 0 | G49: 0 | H49: 0 | I49: 0 | J49: 0
A50: 321 | B50: Naknade troškova zaposlenima
A51: 322 | B51: Rashodi za materijal i energiju
A52: 323 | B52: Rashodi za usluge
A53: 329 | B53: Ostali nespomenuti rashodi poslovanja
A54: 4 | B54: Rashodi za nabavu nefinancijske imovine | C54: =C55 -> 0 | D54: =D55 -> 0 | E54: 0 | F54: 0 | G54: 0 | H54: 0 | I54: 0 | J54: 0 | K54: 0 | L54: 0
A55: 42 | B55: Rashodi za nabavu proizvedene dugotrajne imovine | C55: =SUM(C56:C57) -> 0 | D55: =SUM(D56:D57) -> 0 | E55: 0 | F55: 0 | G55: 0 | H55: 0 | I55: 0 | J55: 0
A56: 422 | B56: Postrojenja i oprema
A57: 424 | B57: Knjige, umjetnička djela i ostale izložbene vrijednosti
B58: UKUPNO: | C58: =C44+C54 -> 0 | D58: =D44+D54 -> 0 | E58: 0 | F58: 0 | G58: 0 | H58: 0 | I58: 0 | J58: 0 | K58: 0 | L58: 0
A61: T | B61: Projekti Europske unije
A62: 3 | B62: RASHODI POSLOVANJA | C62: =C63 -> 0 | D62: =D63 -> 0 | E62: 0 | F62: 0 | G62: 0 | H62: 0 | I62: 0 | J62: 0 | K62: 0 | L62: 0
A63: 31 | B63: Rashodi za zaposlene | C63: =SUM(C64) -> 0 | D63: =SUM(D64) -> 0 | E63: 0 | F63: 0 | G63: 0 | H63: 0 | I63: 0 | J63: 0
A64: 312 | B64: Ostali rashodi za zaposlene
A65: 32 | B65: Materijalni rashodi | C65: =SUM(C66:C67) -> 0 | D65: =SUM(D66:D67) -> 0 | E65: 0 | F65: 0 | G65: 0 | H65: 0 | I65: 0 | J65: 0
A66: 323 | B66: Rashodi za usluge
A67: 329 | B67: Ostali nespomenuti rashodi poslovanja
A68: 4 | B68: Rashodi za nabavu nefinancijske imovine | C68: =C573 -> 0 | D68: =D573 -> 0 | E68: 0 | F68: 0 | G68: 0 | H68: 0 | I68: 0 | J68: 0 | K68: 0 | L68: 0
A69: 42 | B69: Rashodi za nabavu proizvedene dugotrajne imovine | C69: =SUM(C70) -> 0 | D69: =SUM(D70) -> 0 | E69: 0 | F69: 0 | G69: 0 | H69: 0 | I69: 0 | J69: 0
A70: 422 | B70: Postrojenja i oprema
B71: UKUPNO: | C71: =C62+C68 -> 0 | D71: =D62+D68 -> 0 | E71: 0 | F71: 0 | G71: 0 | H71: 0 | I71: 0 | J71: 0 | K71: 0 | L71: 0
A74: T | B74: Stručno osposobljavanje za rad bez zasnivanja radnog odnosa
A75: 3 | B75: RASHODI POSLOVANJA | C75: =C76 -> 0 | D75: =D76 -> 0 | E75: 0 | F75: 0 | G75: 0 | H75: 0 | I75: 0 | J75: 0 | K75: 0 | L75: 0
A76: 32 | B76: Materijalni rashodi | C76: =SUM(C77) -> 0 | D76: =SUM(D77) -> 0 | E76: 0 | F76: 0 | G76: 0 | H76: 0 | I76: 0 | J76: 0 | K76: 0
A77: 324 | B77: Naknade trošk.osobama izvan radn.odn.
B78: UKUPNO: | C78: =C75 -> 0 | D78: =D75 -> 0 | E78: 0 | F78: 0 | G78: 0 | H78: 0 | I78: 0 | J78: 0 | K78: 0 | L78: 0
A81: A | B81: Prometne jedinice mladeži
A82: 3 | B82: RASHODI POSLOVANJA | C82: =C83 -> 0 | D82: =D83 -> 0 | E82: 0 | F82: 0 | G82: 0 | H82: 0 | I82: 0 | J82: 0 | K82: 0 | L82: 0
A83: 32 | B83: Materijalni rashodi | C83: =SUM(C84) -> 0 | D83: =SUM(D84) -> 0 | E83: 0 | F83: 0 | G83: 0 | H83: 0 | I83: 0 | J83: 0
A84: 329 | B84: Ostali nespomenuti rashodi poslovanja
B85: UKUPNO: | C85: =C82 -> 0 | D85: =D82 -> 0 | E85: 0 | F85: 0 | G85: 0 | H85: 0 | I85: 0 | J85: 0 | K85: 0 | L85: 0
B87: SVEUKUPNO: | C87: =C58+C71+C78+C84 -> 0 | D87: 0 | E87: 0 | F87: 0 | G87: 0 | H87: 0 | I87: 0 | J87: 0 | K87: 0 | L87: 0
A91: A | B91: Naziv aktivnosti
A92: 3 | B92: RASHODI POSLOVANJA | C92: 4700000 | D92: 4700000
A93: 31 | B93: Rashodi za zaposlene | C93: =SUM(C94+C95+C96) -> 4700000 | D93: =SUM(D94+D95+D96) -> 4700000 | K93: 4700000 | L93: 4700000
A94: 311 | B94: Plaće (Bruto) | C94: 4080000 | D94: 4080000
A95: 312 | B95: Ostali rashodi za zaposlene | C95: 10000 | D95: 10000
A96: 313 | B96: Doprinosi na plaće | C96: 610000 | D96: 610000
A97: 32 | B97: Materijalni rashodi
A98: 321 | B98: Naknade troškova zaposlenima
A99: 322 | B99: Rashodi za materijal i energiju
A100: 323 | B100: Rashodi za usluge
A101: 329 | B101: Ostali nespomenuti rashodi poslovanja
A102: 34 | B102: Financijski rashodi
A103: 343 | B103: Ostali financijski rashodi
A104: 4 | B104: Rashodi za nabavu nefinancijske imovine
A105: 42 | B105: Rashodi za nabavu proizvedene dugotrajne imovine
A106: 422 | B106: Postrojenja i oprema
A107: 424 | B107: Knjige, umjetnička djela i ostale izložbene vrijednosti

Sheet Opći dio
A1: PRIJEDLOG FINANCIJSKOG PLANA (proračunski korisnik) ZA 2014. I PROJEKCIJA PLANA ZA 2015. I 2016. GODINU
A2: OPĆI DIO
F5: Prijedlog plana za 2014. | G5: Projekcija plana za 2015. | H5: Projekcija plana za 2016.
A6: PRIHODI UKUPNO | F6: 5354755 | G6: 5354755 | H6: 5354755
A7: PRIHODI POSLOVANJA | F7: 5354755 | G7: 5354755 | H7: 5354755
A8: PRIHODI OD NEFINANCIJSKE IMOVINE | F8: 0 | G8: 0 | H8: 0
A9: RASHODI UKUPNO | F9: 5354755 | G9: 5354755 | H9: 5354755
A10: RASHODI POSLOVANJA | F10: 5354755 | G10: 5354755 | H10: 5354755
A11: RASHODI ZA NEFINANCIJSKU IMOVINU
A12: RAZLIKA - VIŠAK / MANJAK | F12: =+F6-F9 -> 0 | G12: =+G6-G9 -> 0 | H12: =+H6-H9 -> 0
F14: Prijedlog plana za 2014. | G14: Projekcija plana za 2015. | H14: Projekcija plana za 2016.
A15: VIŠAK/MANJAK IZ PRETHODNE GODINE | F15: 0 | G15: 0 | H15: 0
F17: Prijedlog plana za 2014. | G17: Projekcija plana za 2015. | H17: Projekcija plana za 2016.
A18: PRIMICI OD FINANCIJSKE IMOVINE I ZADUŽIVANJA
A19: IZDACI ZA FINANCIJSKU IMOVINU I OTPLATE ZAJMOVA
A20: NETO FINANCIRANJE
A22: VIŠAK / MANJAK + NETO FINANCIRANJE | F22: =SUM(F12,F15,F20) -> 0 | G22: =SUM(G12,G15,G20) -> 0 | H22: =SUM(H12,H15,H20) -> 0

Sheet Plan prihoda
A1: PLAN PRIHODA I PRIMITAKA
H2: u kunama
A3: Izvor prihoda i primitaka | B3: 2014.
A4: Oznaka rač.iz računskog plana | B4: Opći prihodi i primici | C4: Vlastiti prihodi | D4: Prihodi za posebne namjene | E4: Pomoći | F4: Donacije | G4: Prihodi od nefinancijske imovine i nadoknade šteta s osnova osiguranja | H4: Namjenski primici od zaduživanja
A5: 652 | D5: 158385
A6: 661 | C6: 21000
A7: 671 | B7: 471800 | E7: 3570
A8: 671 | B8: 4700000
A14: Ukupno (po izvorima) | B14: =B7+B8 -> 5171800 | C14: =+C6 -> 21000 | D14: =D5 -> 158385 | E14: 3570 | F14: =+F6 -> 0 | G14: 0 | H14: 0
A15: Ukupno prihodi i primici za 2014. | B15: =B14+C14+D14+E14+F14+G14+H14 -> 5354755
A17: Izvor prihoda i primitaka | B17: 2015.
A18: Oznaka rač.iz računskog plana | B18: Opći prihodi i primici | C18: Vlastiti prihodi | D18: Prihodi za posebne namjene | E18: Pomoći | F18: Donacije | G18: Prihodi od nefinancijske imovine i nadoknade šteta s osnova osiguranja | H18: Namjenski primici od zaduživanja
A19: 652 | D19: 158385
A20: 661 | C20: 21000
A21: 671 | B21: 471800 | E21: 3570
A22: 671 | B22: 4700000
A24: Ukupno (po izvorima) | B24: 5171800 | C24: =+C20 -> 21000 | D24: =D19 -> 158385 | E24: 3570 | F24: =+F20 -> 0 | G24: 0 | H24: 0
A25: Ukupno prihodi i primici za 2015. | B25: 5354755
A27: Izvor prihoda i primitaka | B27: 2016.
A28: Oznaka rač.iz računskog plana | B28: Opći prihodi i primici | C28: Vlastiti prihodi | D28: Prihodi za posebne namjene | E28: Pomoći | F28: Donacije | G28: Prihodi od nefinancijske imovine i nadoknade šteta s osnova osiguranja | H28: Namjenski primici od zaduživanja
A29: 652 | D29: 158385
A30: 661 | C30: 21000
A31: 671 | B31: 471800 | E31: 3570
A32: 671 | B32: 4700000
A35: Ukupno (po izvorima) | B35: 5171800 | C35: =+C30 -> 21000 | D35: =D29 -> 158385 | E35: 3570 | F35: =+F30 -> 0 | G35: 0 | H35: 0
A36: Ukupno prihodi i primici za 2016. | B36: 5354755
